fUSD/lending_fUSD_20250302
["ID","MTS","AMOUNT","RATE_DAILY","PERIOD"]
[355085663,1740887497960,-500.0,0.00027397,2]
[355085665,1740887497970,-1038.07,0.00027397,2]
[355085668,1740887497981,-500.0,0.00027397,2]
[355085669,1740887497991,-500.0,0.00027397,2]
[355085671,1740887498002,-500.0,0.00027397,2]
[355085673,1740887498012,-151.0,0.00027397,7]
[355085676,1740887498023,-500.0,0.00027397,2]
[355085677,1740887498032,-500.0,0.00027397,2]
[355085679,1740887498041,-742.83,0.00027397,2]
[355085681,1740887498051,-938.31,0.00027397,2]
[355085683,1740887498060,-500.0,0.00027397,2]
[355085685,1740887498070,-1459.72,0.00027397,2]
[355085687,1740887498080,-500.0,0.00027397,2]
[355085689,1740887498089,-500.0,0.00027397,2]
[355085691,1740887498099,-532.91,0.00027397,2]
[355085693,1740887498109,-994.97,0.00027397,2]
[355085695,1740887498119,-500.0,0.00027397,2]
[355085697,1740887498129,-500.0,0.00027397,2]
[355085699,1740887498138,-709.92,0.00027397,2]
[355085701,1740887498148,-179.9,0.00027397,2]
[355085702,1740887498157,-1170.83,0.00027397,2]
[355085704,1740887498166,-500.0,0.00027397,2]
[355085706,1740887498176,-500.0,0.00027397,2]
[355085708,1740887498185,-500.0,0.00027397,2]
[355085710,1740887498195,-1135.5,0.00027397,2]
[355085712,1740887498205,-500.0,0.00027397,2]
[355085714,1740887498214,-839.78,0.00027397,2]
[355085716,1740887498224,-500.0,0.00027397,2]
[355085718,1740887498233,-707.46,0.00027397,2]
[355085720,1740887498243,-500.0,0.00027397,2]
[355085722,1740887498252,-696.66,0.00027397,2]
[355085724,1740887498261,-619.89,0.00027397,2]
[355085726,1740887498271,-500.0,0.00027397,2]
[355085727,1740887498279,-500.0,0.00027397,2]
[355085729,1740887498289,-1502.86,0.00027397,2]
[355085731,1740887498299,-590.17,0.00027397,2]
[355085733,1740887498309,-500.0,0.00027397,2]
[355085735,1740887498318,-500.0,0.00027397,2]
[355085737,1740887498328,-500.0,0.00027397,2]
[355085739,1740887498338,-1326.11,0.00027397,2]
[355085741,1740887498347,-500.0,0.00027397,2]
[355085743,1740887498356,-522.59,0.00027397,2]
[355085745,1740887498365,-500.0,0.00027397,2]
[355085747,1740887498375,-863.92,0.00027397,2]
[355085749,1740887498384,-500.0,0.00027397,2]
[355085751,1740887498394,-500.0,0.00027397,2]
[355085753,1740887498403,-1570.35,0.00027397,2]
[355085755,1740887498413,-1416.37,0.00027397,2]
[355085757,1740887498423,-500.0,0.00027397,2]
[355085759,1740887498432,-599.84,0.00027397,2]
[355085761,1740887498442,-1711.31,0.00027397,2]
[355085763,1740887498452,-623.26,0.00027397,2]
[355085765,1740887498461,-299.99,0.00027397,12]
[355085767,1740887498471,-9999.99,0.00027397,2]
[355085768,1740887498482,-1389.0,0.00027397,2]
[355085771,1740887498491,-150.99,0.00027397,2]
[355085772,1740887498501,-1069.53,0.00027397,2]
[355085774,1740887498511,-150.99,0.00027397,2]
[355085776,1740887498521,-443.42941625,0.00027463,2]
[355085778,1740887498530,-157.03,0.00027467,2]
[355085780,1740887498540,-2162.02846587,0.0002748,2]
[355085782,1740887498549,-500.0,0.000275,7]
[355085784,1740887498559,-500.0,0.000275,7]
[355085786,1740887498568,-500.0,0.000275,7]
[355085788,1740887498577,-500.0,0.000275,7]
[355085790,1740887498587,-500.0,0.000275,7]
[355085792,1740887498597,-500.0,0.000275,7]
[355085794,1740887498609,-500.0,0.000275,7]
[355085796,1740887498619,-500.0,0.000275,7]
[355085797,1740887498628,-500.0,0.000275,7]
[355085799,1740887498638,-500.0,0.000275,7]
[355085801,1740887498648,-500.0,0.000275,7]
[355085803,1740887498658,-500.0,0.000275,7]
[355085805,1740887498667,-500.0,0.000275,7]
[355085807,1740887498677,-500.0,0.000275,7]
[355085809,1740887498691,-500.0,0.000275,7]
[355085811,1740887498702,-426.83,0.000275,7]
[355085813,1740887498711,-500.0,0.000275,7]
[355085815,1740887498721,-500.0,0.000275,7]
[355085817,1740887498730,-500.0,0.000275,7]
[355085819,1740887498740,-500.0,0.000275,7]
[355085821,1740887498750,-500.0,0.000275,7]
[355085823,1740887498759,-500.0,0.000275,7]
[355085825,1740887498769,-500.0,0.000275,7]
[355085827,1740887498778,-500.0,0.000275,7]
[355085829,1740887498788,-500.0,0.000275,7]
[355085831,1740887498798,-500.0,0.000275,7]
[355085833,1740887498809,-500.0,0.000275,7]
[355085835,1740887498818,-500.0,0.000275,7]
[355085837,1740887498828,-500.0,0.000275,7]
[355085839,1740887498838,-500.0,0.000275,7]
[355085841,1740887498848,-500.0,0.000275,7]
[355085843,1740887498858,-500.0,0.000275,7]
[355085845,1740887498868,-500.0,0.000275,7]
[355085847,1740887498878,-500.0,0.000275,7]
[355085849,1740887498887,-500.0,0.000275,7]
[355085851,1740887498897,-500.0,0.000275,7]
[355085853,1740887498906,-500.0,0.000275,7]
[355085854,1740887498916,-500.0,0.000275,7]
[355085857,1740887498926,-500.0,0.000275,7]
[355085858,1740887498935,-500.0,0.000275,7]
[355085860,1740887498946,-500.0,0.000275,7]
[355085862,1740887498955,-500.0,0.000275,7]
[355085864,1740887498965,-500.0,0.000275,7]
[355085866,1740887498974,-500.0,0.000275,7]
[355085868,1740887498983,-500.0,0.000275,7]
[355085870,1740887498993,-500.0,0.000275,7]
[355085872,1740887499003,-500.0,0.000275,7]
[355085874,1740887499012,-500.0,0.000275,7]
[355085876,1740887499021,-500.0,0.000275,7]
[355085878,1740887499031,-500.0,0.000275,7]
[355085880,1740887499040,-500.0,0.000275,7]
[355085882,1740887499050,-500.0,0.000275,7]
[355085884,1740887499059,-514.03,0.000275,7]
[355085885,1740887499069,-152.172952,0.000275,7]
[355085887,1740887499079,-151.0,0.000275,7]
[355085889,1740887499089,-2110.0,0.000275,2]
[355085892,1740887499100,-1040.53477436,0.00027541,2]
[355085893,1740887499110,-333.83455292,0.0002757,2]
[355085895,1740887499120,-223.24551892,0.0002757,5]
[355085897,1740887499129,-4398.46684074,0.0002757,2]
[355085899,1740887499139,-284.76176158,0.00027624,4]
[355085901,1740887499148,-150.0,0.00027644,2]
[355085903,1740887499158,-500.0,0.0002767,2]
[355085905,1740887499168,-2206.95,0.0002767,2]
[355085907,1740887499177,-1593.1,0.0002767,2]
[355085922,1740887499313,-1214.58,0.0002767,2]
[355085924,1740887499325,-604.69,0.0002767,2]
[355085926,1740887499335,-1815.67,0.0002767,2]
[355085928,1740887499344,-2287.74,0.0002767,2]
[355085930,1740887499354,-1353.94,0.0002767,2]
[355085932,1740887499364,-882.39,0.0002767,2]
[355085934,1740887499373,-1111.3,0.0002767,2]
[355085936,1740887499383,-2523.38,0.0002767,2]
[355085938,1740887499392,-500.0,0.0002767,2]
[355085940,1740887499402,-1004.64,0.0002767,2]
[355085942,1740887499411,-521.64,0.0002767,2]
[355085944,1740887499421,-1813.84,0.0002767,2]
[355085946,1740887499431,-1689.15,0.0002767,2]
[355085948,1740887499440,-182.646698,0.0002767,7]
[355085950,1740887499451,-1000.0,0.0002767,2]
[355085952,1740887499460,-1508.64,0.0002767,2]
[355085954,1740887499470,-1571.69,0.0002767,2]
[355085956,1740887499480,-609.55,0.0002767,2]
[355085958,1740887499489,-151.0,0.00027671,7]
[355085960,1740887499499,-195.21165648,0.00027671,7]
[355085961,1740887499509,-151.0,0.00027671,7]
[355085962,1740887499518,-500.0,0.00027671,2]
[355085963,1740887499527,-500.0,0.00027671,2]
[355085964,1740887499537,-615.81,0.00027671,2]
[355085965,1740887499547,-500.0,0.00027671,2]
[355085966,1740887499556,-500.0,0.00027671,2]
[355085967,1740887499567,-500.0,0.00027671,2]
[355085969,1740887499577,-500.0,0.00027671,2]
[355085971,1740887499587,-500.0,0.00027671,2]
[355085973,1740887499597,-500.0,0.00027671,2]
[355085975,1740887499611,-500.0,0.00027671,2]
[355085977,1740887499621,-500.0,0.00027671,2]
[355085979,1740887499631,-500.0,0.00027671,2]
[355085981,1740887499642,-500.0,0.00027671,2]
[355085983,1740887499652,-472.96,0.00027671,2]
[355085985,1740887499662,-500.0,0.00027671,2]
[355085987,1740887499671,-500.0,0.00027671,2]
[355085989,1740887499682,-500.0,0.00027671,2]
[355085991,1740887499691,-500.0,0.00027671,2]
[355085993,1740887499701,-500.0,0.00027671,2]
[355085995,1740887499710,-513.38,0.00027671,2]
[355085997,1740887499720,-500.0,0.00027671,2]
[355085999,1740887499730,-500.0,0.00027671,2]
[355086001,1740887499740,-805.392929,0.00027671,2]
[355086003,1740887499750,-500.0,0.00027671,2]
[355086005,1740887499760,-190.08102266,0.00027671,2]
[355086007,1740887499769,-500.0,0.00027671,2]
[355086009,1740887499779,-500.0,0.00027671,2]
[355086011,1740887499789,-617.82,0.00027671,2]
[355086013,1740887499799,-792.3,0.00027671,2]
[355086015,1740887499808,-500.0,0.00027671,2]
[355086017,1740887499819,-811.726163,0.00027671,2]
[355086019,1740887499829,-915.56,0.00027671,2]
[355086021,1740887499839,-500.0,0.00027671,2]
[355086023,1740887499849,-500.0,0.00027671,2]
[355086025,1740887499859,-985.91,0.00027671,2]
[355086027,1740887499869,-607.74,0.00027671,2]
[355086029,1740887499878,-500.0,0.00027671,2]
[355086031,1740887499888,-500.0,0.00027671,2]
[355086033,1740887499898,-500.0,0.00027671,2]
[355086035,1740887499908,-372.67161362,0.00027671,2]
[355086037,1740887499917,-344.48,0.00027671,2]
[355086039,1740887499927,-500.0,0.00027671,2]
[355086041,1740887499937,-500.0,0.00027671,2]
[355086043,1740887499947,-713.04,0.00027671,2]
[355086045,1740887499957,-563.62,0.00027671,2]
[355086047,1740887499967,-500.0,0.00027671,2]
[355086049,1740887499977,-500.0,0.00027671,2]
[355086051,1740887499987,-500.0,0.00027671,2]
[355086053,1740887499996,-500.0,0.00027671,2]
[355086055,1740887500006,-500.0,0.00027671,2]
[355086057,1740887500015,-500.0,0.00027671,2]
[355086059,1740887500026,-887.27,0.00027671,2]
[355086061,1740887500036,-901.65,0.00027671,2]
[355086063,1740887500047,-826.95,0.00027671,2]
[355086065,1740887500057,-500.0,0.00027671,2]
[355086067,1740887500068,-500.0,0.00027671,2]
[355086069,1740887500078,-500.0,0.00027671,2]
[355086071,1740887500088,-642.02,0.00027671,2]
[355086073,1740887500098,-500.0,0.00027671,2]
[355086075,1740887500108,-522.88,0.00027671,2]
[355086077,1740887500118,-500.0,0.00027671,2]
[355086079,1740887500129,-500.0,0.00027671,2]
[355086081,1740887500138,-500.0,0.00027671,2]
[355086083,1740887500148,-500.0,0.00027671,2]
[355086085,1740887500158,-1059.55,0.00027671,2]
[355086087,1740887500168,-500.0,0.00027671,2]
[355086089,1740887500178,-500.0,0.00027671,2]
[355086092,1740887500189,-500.0,0.00027671,2]
[355086094,1740887500199,-581.73,0.00027671,2]
[355086096,1740887500208,-565.1,0.00027671,2]
[355086097,1740887500218,-628.42,0.00027671,2]
[355086100,1740887500228,-500.0,0.00027671,2]
[355086102,1740887500238,-500.0,0.00027671,2]
[355086104,1740887500247,-867.58,0.00027671,2]
[355086106,1740887500258,-500.0,0.00027671,2]
[355086108,1740887500268,-1218.62,0.00027671,2]
[355086110,1740887500278,-500.0,0.00027671,2]
[355086112,1740887500288,-1015.97,0.00027671,2]
[355086114,1740887500298,-500.0,0.00027671,2]
[355086116,1740887500307,-1288.29,0.00027671,2]
[355086118,1740887500317,-500.0,0.00027671,2]
[355086120,1740887500327,-856.24,0.00027671,2]
[355086122,1740887500336,-500.0,0.00027671,2]
[355086124,1740887500345,-577.63,0.00027671,2]
[355086126,1740887500355,-1023.39,0.00027671,2]
[355086127,1740887500364,-500.0,0.00027671,2]
[355086129,1740887500374,-1167.74,0.00027671,2]
[355086131,1740887500383,-1673.85,0.00027671,2]
[355086133,1740887500393,-2540.27,0.00027671,2]
[355086135,1740887500403,-566.11,0.00027671,2]
[355086137,1740887500413,-500.0,0.00027671,2]
[355086139,1740887500423,-752.51,0.00027671,2]
[355086141,1740887500433,-1557.28,0.00027671,2]
[355086143,1740887500444,-870.61,0.00027671,2]
[355086145,1740887500454,-1783.03,0.00027671,2]
[355086147,1740887500464,-533.75,0.00027671,2]
[355086149,1740887500473,-2012.85,0.00027671,2]
[355086151,1740887500484,-1176.97,0.00027671,2]
[355086153,1740887500495,-844.33,0.00027671,2]
[355086155,1740887500504,-1475.57,0.00027671,2]
[355086157,1740887500513,-151.0,0.00027671,7]
[355086159,1740887500523,-1746.05,0.00027671,2]
[355086161,1740887500532,-599.92,0.00027671,2]
[355086163,1740887500542,-550.24,0.00027671,2]
[355086165,1740887500551,-500.0,0.00027671,2]
[355086167,1740887500560,-1535.97,0.00027671,2]
[355086169,1740887500572,-1274.93,0.00027671,2]
[355086171,1740887500582,-500.0,0.00027671,2]
[355086173,1740887500592,-608.12,0.00027671,2]
[355086175,1740887500604,-515.13,0.00027671,2]
[355086177,1740887500615,-733.69,0.00027671,2]
[355086179,1740887500624,-560.4,0.00027671,2]
[355086181,1740887500633,-500.0,0.00027671,2]
[355086183,1740887500643,-243.6,0.00027671,2]
[355086185,1740887500652,-500.0,0.00027671,2]
[355086187,1740887500662,-1341.6,0.00027671,2]
[355086189,1740887500671,-1584.9,0.00027671,2]
[355086191,1740887500683,-1078.1,0.00027671,2]
[355086193,1740887500692,-151.0,0.00027671,7]
[355086195,1740887500703,-1521.75,0.00027671,2]
[355086197,1740887500712,-1865.0,0.00027671,2]
[355086198,1740887500722,-500.0,0.00027671,2]
[355086200,1740887500732,-1655.28,0.00027671,2]
[355086202,1740887500741,-237.513782,0.00027671,7]
[355086204,1740887500751,-500.0,0.00027671,2]
[355086206,1740887500760,-500.0,0.00027671,2]
[355086208,1740887500770,-1038.07,0.00027671,2]
[355086210,1740887500780,-500.0,0.00027671,2]
[355086213,1740887500790,-500.0,0.00027671,2]
[355086214,1740887500800,-500.0,0.00027671,2]
[355086216,1740887500810,-151.0,0.00027671,7]
[355086219,1740887500820,-500.0,0.00027671,2]
[355086221,1740887500830,-500.0,0.00027671,2]
[355086223,1740887500840,-742.83,0.00027671,2]
[355086225,1740887500850,-938.31,0.00027671,2]
[355086226,1740887500860,-500.0,0.00027671,2]
[355086229,1740887500870,-1459.72,0.00027671,2]
[355086231,1740887500880,-474.59307262,0.00027671,2]
[355086233,1740887500889,-500.0,0.00027671,2]
[355086234,1740887500898,-532.91,0.00027671,2]
[355086237,1740887500908,-994.97,0.00027671,2]
[355086238,1740887500917,-500.0,0.00027671,2]
[355086241,1740887500927,-507.50148006,0.00027671,2]
[355086243,1740887500936,-709.92,0.00027671,2]
[355086245,1740887500947,-1170.83,0.00027671,2]
[355086247,1740887500957,-500.0,0.00027671,2]
[355086249,1740887500966,-500.0,0.00027671,2]
[355086251,1740887500975,-479.6,0.00027671,2]
[355086253,1740887500985,-1135.5,0.00027671,2]
[355086255,1740887500994,-500.0,0.00027671,2]
[355086257,1740887501003,-839.78,0.00027671,2]
[355086259,1740887501012,-265.78093222,0.00027671,2]
[355086261,1740887501022,-707.46,0.00027671,2]
[355086263,1740887501032,-500.0,0.00027671,2]
[355086265,1740887501041,-696.66,0.00027671,2]
[355086267,1740887501051,-619.89,0.00027671,2]
[355086269,1740887501061,-500.0,0.00027671,2]
[355086271,1740887501070,-343.82846542,0.00027671,2]
[355086273,1740887501080,-1502.86,0.00027671,2]
[355086275,1740887501089,-590.17,0.00027671,2]
[355086277,1740887501099,-500.0,0.00027671,2]
[355086279,1740887501109,-315.32359679,0.00027671,2]
[355086281,1740887501118,-500.0,0.00027671,2]
[355086283,1740887501129,-1326.11,0.00027671,2]
[355086285,1740887501139,-409.61,0.00027671,2]
[355086287,1740887501148,-522.59,0.00027671,2]
[355086289,1740887501157,-500.0,0.00027671,2]
[355086291,1740887501167,-863.92,0.00027671,2]
[355086293,1740887501176,-500.0,0.00027671,2]
[355086295,1740887501185,-500.0,0.00027671,2]
[355086297,1740887501195,-1570.35,0.00027671,2]
[355086299,1740887501205,-1416.37,0.00027671,2]
[355086301,1740887501219,-500.0,0.00027671,2]
[355086303,1740887501229,-599.84,0.00027671,2]
[355086305,1740887501239,-1711.31,0.00027671,2]
[355086307,1740887501248,-623.26,0.00027671,2]
[355086309,1740887501258,-157.03,0.0002768,2]
[355086311,1740887501267,-296.353,0.00027844,2]
[355086313,1740887501276,-2162.02846587,0.00027845,2]
[355086315,1740887501286,-157.03,0.00027893,2]
[355086317,1740887501296,-701.0240425,0.00027929,4]
[355086319,1740887501305,-1679.41,0.00027934,2]
[355086321,1740887501314,-500.0,0.00027934,2]
[355086323,1740887501323,-284.76176158,0.00027934,4]
[355086325,1740887501333,-151.964313,0.00027944,7]
[355086327,1740887501342,-500.0,0.00027944,2]
[355086329,1740887501352,-2206.95,0.00027944,2]
[355086331,1740887501361,-1593.1,0.00027944,2]
[355086333,1740887501371,-1214.58,0.00027944,2]
[355086335,1740887501381,-604.69,0.00027944,2]
[355086337,1740887501390,-1815.67,0.00027944,2]
[355086339,1740887501399,-2287.74,0.00027944,2]
[355086340,1740887501409,-1353.94,0.00027944,2]
[355086343,1740887501419,-882.39,0.00027944,2]
[355086344,1740887501429,-1111.3,0.00027944,2]
[355086346,1740887501438,-2523.38,0.00027944,2]
[355086348,1740887501447,-500.0,0.00027944,2]
[355086350,1740887501457,-1004.64,0.00027944,2]
[355086352,1740887501467,-1813.84,0.00027944,2]
[355086354,1740887501477,-1689.15,0.00027944,2]
[355086356,1740887501486,-1000.0,0.00027944,2]
[355086358,1740887501496,-1508.64,0.00027944,2]
[355086361,1740887501505,-1571.69,0.00027944,2]
[355086363,1740887501516,-609.55,0.00027944,2]
[355086365,1740887501525,-500.0,0.00027945,2]
[355086367,1740887501535,-500.0,0.00027945,2]
[355086369,1740887501544,-615.81,0.00027945,2]
[355086371,1740887501555,-500.0,0.00027945,2]
[355086373,1740887501565,-500.0,0.00027945,2]
[355086375,1740887501574,-500.0,0.00027945,2]
[355086377,1740887501584,-500.0,0.00027945,2]
[355086379,1740887501593,-475.63,0.00027945,2]
[355086381,1740887501606,-500.0,0.00027945,2]
[355086383,1740887501617,-500.0,0.00027945,2]
[355086385,1740887501628,-500.0,0.00027945,2]
[355086387,1740887501638,-500.0,0.00027945,2]
[355086389,1740887501649,-500.0,0.00027945,2]
[355086391,1740887501660,-500.0,0.00027945,2]
[355086393,1740887501670,-500.0,0.00027945,2]
[355086395,1740887501679,-221.16,0.00027945,2]
[355086397,1740887501691,-638.93,0.00027945,2]
[355086399,1740887501702,-500.0,0.00027945,2]
[355086401,1740887501712,-513.38,0.00027945,2]
[355086403,1740887501723,-500.0,0.00027945,2]
[355086405,1740887501732,-500.0,0.00027945,2]
[355086407,1740887501742,-805.392929,0.00027945,2]
[355086409,1740887501752,-500.0,0.00027945,2]
[355086411,1740887501762,-165.05182,0.00027945,2]
[355086413,1740887501772,-413.36,0.00027945,2]
[355086415,1740887501782,-160.018307,0.00027945,2]
[355086417,1740887501791,-385.2,0.00027945,2]
[355086419,1740887501801,-617.82,0.00027945,2]
[355086421,1740887501811,-792.3,0.00027945,2]
[355086423,1740887501820,-355.6,0.00027945,2]
[355086425,1740887501830,-915.56,0.00027945,2]
[355086427,1740887501839,-811.726163,0.00027945,2]
[355086428,1740887501849,-460.31,0.00027945,2]
[355086431,1740887501859,-228.96,0.00027945,2]
[355086433,1740887501869,-985.91,0.00027945,2]
[355086435,1740887501880,-607.74,0.00027945,2]
[355086437,1740887501889,-500.0,0.00027945,2]
[355086439,1740887501900,-154.0,0.00027945,2]
[355086441,1740887501909,-500.0,0.00027945,2]
[355086442,1740887501918,-500.0,0.00027945,2]
[355086445,1740887501928,-500.0,0.00027945,2]
[355086447,1740887501938,-713.04,0.00027945,2]
[355086449,1740887501948,-563.62,0.00027945,2]
[355086451,1740887501958,-500.0,0.00027945,2]
[355086453,1740887501968,-500.0,0.00027945,2]
[355086455,1740887501978,-500.0,0.00027945,2]
[355086457,1740887501987,-500.0,0.00027945,2]
[355086459,1740887501997,-500.0,0.00027945,2]
[355086461,1740887502006,-500.0,0.00027945,2]
[355086463,1740887502015,-887.27,0.00027945,2]
[355086465,1740887502025,-901.65,0.00027945,2]
[355086467,1740887502035,-826.95,0.00027945,2]
[355086469,1740887502045,-500.0,0.00027945,2]
[355086471,1740887502057,-500.0,0.00027945,2]
[355086473,1740887502066,-500.0,0.00027945,2]
[355086475,1740887502076,-642.02,0.00027945,2]
[355086476,1740887502085,-500.0,0.00027945,2]
[355086478,1740887502094,-522.88,0.00027945,2]
[355086480,1740887502104,-500.0,0.00027945,2]
[355086482,1740887502114,-572.42,0.00027945,2]
[355086485,1740887502123,-500.0,0.00027945,2]
[355086487,1740887502133,-500.0,0.00027945,2]
[355086489,1740887502143,-1059.55,0.00027945,2]
[355086491,1740887502152,-500.0,0.00027945,2]
[355086492,1740887502162,-500.0,0.00027945,2]
[355086511,1740887502328,-500.0,0.00027945,2]
[355086513,1740887502339,-581.73,0.00027945,2]
[355086515,1740887502349,-565.1,0.00027945,2]
[355086517,1740887502358,-500.0,0.00027945,2]
[355086519,1740887502368,-628.42,0.00027945,2]
[355086521,1740887502378,-500.0,0.00027945,2]
[355086523,1740887502387,-867.58,0.00027945,2]
[355086525,1740887502397,-500.0,0.00027945,2]
[355086527,1740887502407,-1218.62,0.00027945,2]
[355086529,1740887502417,-500.0,0.00027945,2]
[355086531,1740887502426,-1015.97,0.00027945,2]
[355086533,1740887502436,-500.0,0.00027945,2]
[355086535,1740887502446,-1288.29,0.00027945,2]
[355086537,1740887502455,-361.96,0.00027945,2]
[355086539,1740887502466,-1399.85082,0.00027945,7]
[355086541,1740887502476,-856.24,0.00027945,2]
[355086543,1740887502485,-500.0,0.00027945,2]
[355086545,1740887502495,-577.63,0.00027945,2]
[355086547,1740887502504,-1023.39,0.00027945,2]
[355086549,1740887502513,-500.0,0.00027945,2]
[355086551,1740887502523,-1167.74,0.00027945,2]
[355086553,1740887502532,-1673.85,0.00027945,2]
[355086555,1740887502542,-2540.27,0.00027945,2]
[355086557,1740887502551,-566.11,0.00027945,2]
[355086559,1740887502560,-263.22,0.00027945,2]
[355086561,1740887502570,-752.51,0.00027945,2]
[355086563,1740887502580,-1557.28,0.00027945,2]
[355086565,1740887502589,-870.61,0.00027945,2]
[355086567,1740887502599,-1783.03,0.00027945,2]
[355086569,1740887502612,-533.75,0.00027945,2]
[355086571,1740887502623,-2012.85,0.00027945,2]
[355086573,1740887502632,-1176.97,0.00027945,2]
[355086575,1740887502642,-844.33,0.00027945,2]
[355086577,1740887502654,-1475.57,0.00027945,2]
[355086579,1740887502663,-1746.05,0.00027945,2]
[355086582,1740887502674,-599.92,0.00027945,2]
[355086584,1740887502684,-500.0,0.00027945,2]
[355086586,1740887502694,-1535.97,0.00027945,2]
[355086588,1740887502705,-1274.93,0.00027945,2]
[355086589,1740887502714,-500.0,0.00027945,2]
[355086591,1740887502724,-608.12,0.00027945,2]
[355086593,1740887502734,-515.13,0.00027945,2]
[355086595,1740887502744,-733.69,0.00027945,2]
[355086597,1740887502753,-560.4,0.00027945,2]
[355086599,1740887502763,-500.0,0.00027945,2]
[355086601,1740887502773,-318.76,0.00027945,2]
[355086603,1740887502783,-1341.6,0.00027945,2]
[355086605,1740887502792,-1584.9,0.00027945,2]
[355086607,1740887502801,-1078.1,0.00027945,2]
[355086609,1740887502811,-1521.75,0.00027945,2]
[355086611,1740887502821,-1865.0,0.00027945,2]
[355086613,1740887502831,-500.0,0.00027945,2]
[355086615,1740887502841,-1655.28,0.00027945,2]
[355086617,1740887502850,-500.0,0.00027945,2]
[355086619,1740887502860,-500.0,0.00027945,2]
[355086621,1740887502870,-1038.07,0.00027945,2]
[355086623,1740887502879,-500.0,0.00027945,2]
[355086625,1740887502889,-500.0,0.00027945,2]
[355086627,1740887502898,-500.0,0.00027945,2]
[355086629,1740887502907,-576.05,0.00027945,2]
[355086631,1740887502917,-557.25096802,0.00027945,2]
[355086633,1740887502926,-742.83,0.00027945,2]
[355086635,1740887502936,-938.31,0.00027945,2]
[355086637,1740887502946,-500.0,0.00027945,2]
[355086639,1740887502955,-1459.72,0.00027945,2]
[355086641,1740887502965,-500.0,0.00027945,2]
[355086643,1740887502975,-532.91,0.00027945,2]
[355086645,1740887502984,-994.97,0.00027945,2]
[355086647,1740887502993,-500.0,0.00027945,2]
[355086649,1740887503003,-709.92,0.00027945,2]
[355086651,1740887503012,-1170.83,0.00027945,2]
[355086653,1740887503021,-500.0,0.00027945,2]
[355086655,1740887503030,-199.26,0.00027945,2]
[355086657,1740887503042,-1135.5,0.00027945,2]
[355086659,1740887503052,-500.0,0.00027945,2]
[355086661,1740887503061,-839.78,0.00027945,2]
[355086663,1740887503070,-707.46,0.00027945,2]
[355086665,1740887503080,-500.0,0.00027945,2]
[355086666,1740887503091,-696.66,0.00027945,2]
[355086668,1740887503100,-619.89,0.00027945,2]
[355086670,1740887503110,-500.0,0.00027945,2]
[355086672,1740887503119,-590.17,0.00027945,2]
[355086674,1740887503130,-1502.86,0.00027945,2]
[355086676,1740887503139,-500.0,0.00027945,2]